[Event "Titled Tuesday Blitz May 23 Late 2023"]
[White "Weinstein, Joshua Ross"]
[Black "Miszler, Levente"]
[WhiteFideId "30927714"]
[BlackFideId "763276"]
[WhiteElo "2318"]
[BlackElo "2176"]
[Result "1-0"]
[Round "02"]
[TimeControl "180+2"]
[Date "2023.05.23"]
[WhiteClock "0:00:12"]
[BlackClock "0:00:12"]

1. e4 {[%clk 0:03:00]}  c6 {[%clk 0:02:58]} 2. Nc3 {[%clk 0:03:01]}  d5 {[%clk 0:02:58]} 3. d4 {[%clk 0:03:02]}  dxe4 {[%clk 0:02:57]} 4. f3 {[%clk 0:03:02]}  Nf6 {[%clk 0:02:57]} 5. Nxe4 {[%clk 0:03:01]}  e5 {[%clk 0:02:53]} 6. dxe5 {[%clk 0:03:01]}  Qxd1+ {[%clk 0:02:53]} 7. Kxd1 {[%clk 0:03:01]}  Nxe4 {[%clk 0:02:53]} 8. fxe4 {[%clk 0:03:01]}  Bg4+ {[%clk 0:02:53]} 9. Be2 {[%clk 0:03:01]}  Bxe2+ {[%clk 0:02:52]} 10. Kxe2 {[%clk 0:03:01]}  Nd7 {[%clk 0:02:53]} 11. Nf3 {[%clk 0:03:02]}  O-O-O {[%clk 0:02:51]} 12. Bf4 {[%clk 0:02:50]}  Re8 {[%clk 0:02:50]} 13. Rad1 {[%clk 0:02:39]}  f6 {[%clk 0:02:41]} 14. Rhe1 {[%clk 0:02:38]}  fxe5 {[%clk 0:02:38]} 15. Bg3 {[%clk 0:02:37]}  Bc5 {[%clk 0:02:36]} 16. Ng5 {[%clk 0:02:36]}  Kc7 {[%clk 0:02:18]} 17. Rf1 {[%clk 0:02:31]}  h6 {[%clk 0:02:17]} 18. Rf7 {[%clk 0:02:18]}  Re7 {[%clk 0:02:02]} 19. Rxd7+ {[%clk 0:01:54]}  Rxd7 {[%clk 0:01:52]} 20. Ne6+ {[%clk 0:01:52]}  Kd6 {[%clk 0:01:45]} 21. Rxd7+ {[%clk 0:01:45]}  Kxd7 {[%clk 0:01:42]} 22. Nxc5+ {[%clk 0:01:45]}  Kd6 {[%clk 0:01:38]} 23. Nxb7+ {[%clk 0:01:42]}  Ke6 {[%clk 0:01:36]} 24. Nc5+ {[%clk 0:01:42]}  Kd6 {[%clk 0:01:36]} 25. Nd3 {[%clk 0:01:42]}  Rg8 {[%clk 0:01:29]} 26. Ke3 {[%clk 0:01:29]}  g5 {[%clk 0:01:04]} 27. Nxe5 {[%clk 0:01:28]}  Ke6 {[%clk 0:01:04]} 28. Nxc6 {[%clk 0:01:26]}  Rc8 {[%clk 0:01:03]} 29. Nd4+ {[%clk 0:01:26]}  Kd7 {[%clk 0:01:03]} 30. b3 {[%clk 0:01:18]}  Rc3+ {[%clk 0:01:00]} 31. Kd2 {[%clk 0:01:18]}  Rc8 {[%clk 0:01:00]} 32. c4 {[%clk 0:01:18]}  Rf8 {[%clk 0:00:59]} 33. Nf5 {[%clk 0:01:14]}  h5 {[%clk 0:00:58]} 34. Bf2 {[%clk 0:01:12]}  Ke6 {[%clk 0:00:55]} 35. Bxa7 {[%clk 0:01:08]}  Ra8 {[%clk 0:00:55]} 36. Nd4+ {[%clk 0:01:08]}  Ke5 {[%clk 0:00:54]} 37. Nb5 {[%clk 0:01:08]}  Kxe4 {[%clk 0:00:55]} 38. c5 {[%clk 0:01:02]}  Kd5 {[%clk 0:00:54]} 39. b4 {[%clk 0:01:01]}  Kc4 {[%clk 0:00:52]} 40. a4 {[%clk 0:00:41]}  Kxb4 {[%clk 0:00:51]} 41. c6 {[%clk 0:00:42]}  Kxa4 {[%clk 0:00:48]} 42. Nc3+ {[%clk 0:00:40]}  Ka5 {[%clk 0:00:37]} 43. c7 {[%clk 0:00:39]}  Rc8 {[%clk 0:00:33]} 44. Bb8 {[%clk 0:00:32]}  Ka6 {[%clk 0:00:19]} 45. Nd5 {[%clk 0:00:31]}  Kb7 {[%clk 0:00:15]} 46. Ne7 {[%clk 0:00:29]}  Re8 {[%clk 0:00:11]} 47. c8=Q+ {[%clk 0:00:28]}  Rxc8 {[%clk 0:00:11]} 48. Nxc8 {[%clk 0:00:28]}  Kxb8 {[%clk 0:00:11]} 49. Ne7 {[%clk 0:00:27]}  Kc7 {[%clk 0:00:11]} 50. Ke3 {[%clk 0:00:26]}  Kd6 {[%clk 0:00:11]} 51. Nf5+ {[%clk 0:00:24]}  Ke5 {[%clk 0:00:11]} 52. Ng3 {[%clk 0:00:25]}  h4 {[%clk 0:00:11]} 53. Ne4 {[%clk 0:00:21]}  h3 {[%clk 0:00:11]} 54. gxh3 {[%clk 0:00:18]}  Kf5 {[%clk 0:00:11]} 55. Kf3 {[%clk 0:00:17]}  Kg6 {[%clk 0:00:10]} 56. Kg4 {[%clk 0:00:17]}  Kh6 {[%clk 0:00:11]} 57. Nxg5 {[%clk 0:00:16]}  Kg6 {[%clk 0:00:12]} 58. h4 {[%clk 0:00:16]}  Kh6 {[%clk 0:00:12]} 59. h5 {[%clk 0:00:17]}  Kg7 {[%clk 0:00:12]} 60. Kf5 {[%clk 0:00:16]}  Kh6 {[%clk 0:00:13]} 61. Kg4 {[%clk 0:00:14]}  Kg7 {[%clk 0:00:13]} 62. Ne6+ {[%clk 0:00:14]}  Kf6 {[%clk 0:00:13]} 63. Nf4 {[%clk 0:00:15]}  Kg7 {[%clk 0:00:14]} 64. Ng6 {[%clk 0:00:15]}  Kh6 {[%clk 0:00:15]} 65. h4 {[%clk 0:00:16]}  Kg7 {[%clk 0:00:15]} 66. Kg5 {[%clk 0:00:16]}  Kh7 {[%clk 0:00:16]} 67. h6 {[%clk 0:00:16]}  Kg8 {[%clk 0:00:16]} 68. Ne7+ {[%clk 0:00:14]}  Kf7 {[%clk 0:00:15]} 69. Nf5 {[%clk 0:00:13]}  Kg8 {[%clk 0:00:15]} 70. Ng3 {[%clk 0:00:13]}  Kf7 {[%clk 0:00:16]} 71. Nh5 {[%clk 0:00:13]}  Kg8 {[%clk 0:00:15]} 72. Nf6+ {[%clk 0:00:14]}  Kh8 {[%clk 0:00:15]} 73. Ng4 {[%clk 0:00:12]}  Kg8 {[%clk 0:00:14]} 74. Kg6 {[%clk 0:00:12]}  Kh8 {[%clk 0:00:14]} 75. Ne5 {[%clk 0:00:12]}  Kg8 {[%clk 0:00:12]} 76. Nf7 {[%clk 0:00:12]} 1-0


[Site "https://www.chess.com"]

[Event "Titled Tuesday Blitz May 23 Late 2023"]
[White "Sivakumar, Shaaketh"]
[Black "Vifleemskaia, Svetlana"]
[WhiteFideId "30940176"]
[BlackFideId "4129490"]
[WhiteElo "2174"]
[BlackElo "1930"]
[Result "1-0"]
[Round "02"]
[TimeControl "180+2"]
[Date "2023.05.23"]
[WhiteClock "0:00:49"]
[BlackClock "0:00:00"]

1. e4 {[%clk 0:03:00]}  e5 {[%clk 0:02:58]} 2. f4 {[%clk 0:02:54]}  d5 {[%clk 0:02:55]} 3. Nf3 {[%clk 0:02:47]}  dxe4 {[%clk 0:02:53]} 4. Nxe5 {[%clk 0:02:43]}  Nf6 {[%clk 0:02:51]} 5. Bc4 {[%clk 0:02:36]}  Be6 {[%clk 0:02:42]} 6. Bxe6 {[%clk 0:02:31]}  fxe6 {[%clk 0:02:43]} 7. Qe2 {[%clk 0:02:29]}  Bc5 {[%clk 0:02:40]} 8. Qb5+ {[%clk 0:02:28]}  Nbd7 {[%clk 0:02:36]} 9. Qxb7 {[%clk 0:02:25]}  O-O {[%clk 0:02:31]} 10. Qc6 {[%clk 0:02:18]}  Qe7 {[%clk 0:02:15]} 11. Nc3 {[%clk 0:02:05]}  Nxe5 {[%clk 0:01:46]} 12. fxe5 {[%clk 0:01:59]}  Ng4 {[%clk 0:01:43]} 13. Nxe4 {[%clk 0:01:57]}  Bf2+ {[%clk 0:01:18]} 14. Nxf2 {[%clk 0:01:44]}  Rxf2 {[%clk 0:01:00]} 15. Qxa8+ {[%clk 0:01:43]}  Rf8 {[%clk 0:00:57]} 16. Qxa7 {[%clk 0:01:41]}  Qh4+ {[%clk 0:00:52]} 17. g3 {[%clk 0:01:37]}  Qh3 {[%clk 0:00:52]} 18. d3 {[%clk 0:01:29]}  Qg2 {[%clk 0:00:44]} 19. Qg1 {[%clk 0:01:27]}  Qxc2 {[%clk 0:00:41]} 20. Bf4 {[%clk 0:01:21]}  g5 {[%clk 0:00:19]} 21. Qd4 {[%clk 0:01:00]}  gxf4 {[%clk 0:00:15]} 22. gxf4 {[%clk 0:00:57]}  Nxh2 {[%clk 0:00:00]} 23. Qf2 {[%clk 0:00:49]} 1-0


[Site "https://www.chess.com"]

[Event "Titled Tuesday Blitz May 23 Late 2023"]
[White "Alahakoon, Isuru"]
[Black "Haszon, David"]
[WhiteFideId "9900993"]
[BlackFideId "733610"]
[WhiteElo "1953"]
[BlackElo "2210"]
[Result "0-1"]
[Round "02"]
[TimeControl "180+2"]
[Date "2023.05.23"]
[WhiteClock "0:00:00"]
[BlackClock "0:00:20"]

1. Nf3 {[%clk 0:03:00]}  Nf6 {[%clk 0:02:59]} 2. d4 {[%clk 0:03:00]}  e6 {[%clk 0:03:00]} 3. Nc3 {[%clk 0:02:59]}  c5 {[%clk 0:02:57]} 4. d5 {[%clk 0:02:55]}  d6 {[%clk 0:02:48]} 5. dxe6 {[%clk 0:02:54]}  Bxe6 {[%clk 0:02:48]} 6. e4 {[%clk 0:02:55]}  Nc6 {[%clk 0:02:46]} 7. Bb5 {[%clk 0:02:41]}  Qb6 {[%clk 0:02:35]} 8. a4 {[%clk 0:02:36]}  a6 {[%clk 0:02:30]} 9. a5 {[%clk 0:02:36]}  Qc7 {[%clk 0:02:19]} 10. Ba4 {[%clk 0:02:29]}  Bd7 {[%clk 0:02:05]} 11. Bg5 {[%clk 0:02:08]}  Be7 {[%clk 0:01:53]} 12. Bxf6 {[%clk 0:02:06]}  Bxf6 {[%clk 0:01:54]} 13. Nd5 {[%clk 0:02:06]}  Qxa5+ {[%clk 0:01:47]} 14. c3 {[%clk 0:02:03]}  Qd8 {[%clk 0:01:42]} 15. O-O {[%clk 0:01:46]}  b5 {[%clk 0:01:35]} 16. Bc2 {[%clk 0:01:44]}  O-O {[%clk 0:01:34]} 17. Re1 {[%clk 0:01:28]}  Bg4 {[%clk 0:01:33]} 18. h3 {[%clk 0:01:25]}  Bh5 {[%clk 0:01:32]} 19. Nf4 {[%clk 0:01:25]}  Bg6 {[%clk 0:01:25]} 20. Nxg6 {[%clk 0:01:20]}  hxg6 {[%clk 0:01:26]} 21. Qd2 {[%clk 0:01:16]}  Ne5 {[%clk 0:01:27]} 22. Nxe5 {[%clk 0:01:10]}  dxe5 {[%clk 0:01:27]} 23. Qe3 {[%clk 0:01:08]}  Qc7 {[%clk 0:01:21]} 24. Red1 {[%clk 0:01:06]}  a5 {[%clk 0:01:19]} 25. Rd5 {[%clk 0:01:04]}  Rfc8 {[%clk 0:01:12]} 26. Rad1 {[%clk 0:01:01]}  Ra7 {[%clk 0:01:00]} 27. g4 {[%clk 0:00:41]}  g5 {[%clk 0:00:58]} 28. h4 {[%clk 0:00:27]}  Qe7 {[%clk 0:00:59]} 29. h5 {[%clk 0:00:21]}  b4 {[%clk 0:00:55]} 30. Qf3 {[%clk 0:00:14]}  bxc3 {[%clk 0:00:53]} 31. bxc3 {[%clk 0:00:14]}  a4 {[%clk 0:00:48]} 32. Qf5 {[%clk 0:00:14]}  Qe6 {[%clk 0:00:49]} 33. Qf3 {[%clk 0:00:06]}  a3 {[%clk 0:00:48]} 34. Bb3 {[%clk 0:00:06]}  c4 {[%clk 0:00:45]} 35. Ba2 {[%clk 0:00:07]}  Qb6 {[%clk 0:00:20]} 36. R1d2 {[%clk 0:00:05]}  Rb7 {[%clk 0:00:19]} 37. Kg2 {[%clk 0:00:05]}  Qe6 {[%clk 0:00:19]} 38. Rd6 {[%clk 0:00:04]}  Qe8 {[%clk 0:00:19]} 39. Qf5 {[%clk 0:00:04]}  Rb2 {[%clk 0:00:19]} 40. h6 {[%clk 0:00:03]}  Rxd2 {[%clk 0:00:17]} 41. Rxd2 {[%clk 0:00:04]}  Qe6 {[%clk 0:00:18]} 42. Qxe6 {[%clk 0:00:03]}  fxe6 {[%clk 0:00:19]} 43. hxg7 {[%clk 0:00:02]}  Kxg7 {[%clk 0:00:20]} 44. Rd7+ {[%clk 0:00:02]}  Kf8 {[%clk 0:00:20]} 45. Ra7 {[%clk 0:00:03]}  Rb8 {[%clk 0:00:20]} 46. Rxa3 {[%clk 0:00:02]}  Rb2 {[%clk 0:00:20]} 47. Bxc4 {[%clk 0:00:01]}  Be7 {[%clk 0:00:20]} 48. Bd5 {[%clk 0:00:00]}  Bxa3 {[%clk 0:00:20]} 0-1


[Site "https://www.chess.com"]

[Event "Titled Tuesday Blitz May 23 Late 2023"]
[White "Cruz Mendez, Jean Marco"]
[Black "Romero Ruscalleda, Josep"]
[WhiteFideId "3526402"]
[BlackFideId "2231859"]
[WhiteElo "2064"]
[BlackElo "2183"]
[Result "0-1"]
[Round "02"]
[TimeControl "180+2"]
[Date "2023.05.23"]
[WhiteClock "0:00:18"]
[BlackClock "0:01:34"]

1. e4 {[%clk 0:03:00]}  g6 {[%clk 0:03:00]} 2. d4 {[%clk 0:03:00]}  Bg7 {[%clk 0:03:01]} 3. Nc3 {[%clk 0:03:00]}  d6 {[%clk 0:03:01]} 4. f4 {[%clk 0:03:00]}  a6 {[%clk 0:03:01]} 5. Nf3 {[%clk 0:02:59]}  b5 {[%clk 0:03:01]} 6. Bd3 {[%clk 0:02:56]}  Bb7 {[%clk 0:03:01]} 7. O-O {[%clk 0:02:57]}  Nd7 {[%clk 0:03:01]} 8. Be3 {[%clk 0:02:54]}  Rc8 {[%clk 0:02:59]} 9. e5 {[%clk 0:02:53]}  Nh6 {[%clk 0:02:58]} 10. Qe1 {[%clk 0:02:44]}  O-O {[%clk 0:02:53]} 11. f5 {[%clk 0:02:38]}  Bxf3 {[%clk 0:02:47]} 12. Rxf3 {[%clk 0:02:38]}  dxe5 {[%clk 0:02:46]} 13. Bxh6 {[%clk 0:02:35]}  Bxh6 {[%clk 0:02:42]} 14. Qh4 {[%clk 0:02:36]}  Bg7 {[%clk 0:02:36]} 15. Rh3 {[%clk 0:02:34]}  h6 {[%clk 0:02:32]} 16. fxg6 {[%clk 0:02:26]}  f5 {[%clk 0:02:26]} 17. dxe5 {[%clk 0:01:48]}  Nxe5 {[%clk 0:02:22]} 18. Be2 {[%clk 0:01:48]}  Nxg6 {[%clk 0:02:09]} 19. Qg3 {[%clk 0:01:46]}  Qd4+ {[%clk 0:02:01]} 20. Kh1 {[%clk 0:01:45]}  Rf6 {[%clk 0:02:01]} 21. Rd1 {[%clk 0:01:40]}  Qf4 {[%clk 0:02:01]} 22. Qd3 {[%clk 0:01:24]}  Rd6 {[%clk 0:01:59]} 23. Nd5 {[%clk 0:01:23]}  Qe5 {[%clk 0:01:53]} 24. Qb3 {[%clk 0:01:13]}  e6 {[%clk 0:01:46]} 25. Re3 {[%clk 0:00:18]}  Qxb2 {[%clk 0:01:34]} 0-1


[Site "https://www.chess.com"]

[Event "Titled Tuesday Blitz May 23 Late 2023"]
[White "Blitz"]
[Black "Magallanes, Rey Jomar"]
[BlackFideId "5205948"]
[WhiteElo "2486"]
[BlackElo "2270"]
[Result "0-1"]
[Round "02"]
[TimeControl "180+2"]
[Date "2023.05.23"]
[WhiteClock "0:00:08"]
[BlackClock "0:00:33"]

1. d4 {[%clk 0:02:58]}  d5 {[%clk 0:02:59]} 2. Nc3 {[%clk 0:02:57]}  Nf6 {[%clk 0:03:00]} 3. Bf4 {[%clk 0:02:57]}  e6 {[%clk 0:03:00]} 4. Nb5 {[%clk 0:02:57]}  Na6 {[%clk 0:02:59]} 5. e3 {[%clk 0:02:56]}  c6 {[%clk 0:02:59]} 6. Nc3 {[%clk 0:02:56]}  Nc7 {[%clk 0:03:00]} 7. Bd3 {[%clk 0:02:54]}  Bd6 {[%clk 0:03:01]} 8. Qf3 {[%clk 0:02:36]}  O-O {[%clk 0:02:55]} 9. g4 {[%clk 0:02:32]}  Bxf4 {[%clk 0:02:43]} 10. Qxf4 {[%clk 0:02:24]}  Qe7 {[%clk 0:02:32]} 11. h4 {[%clk 0:02:14]}  Re8 {[%clk 0:02:27]} 12. Nf3 {[%clk 0:02:14]}  c5 {[%clk 0:02:23]} 13. h5 {[%clk 0:02:12]}  cxd4 {[%clk 0:02:22]} 14. exd4 {[%clk 0:02:12]}  Nxg4 {[%clk 0:02:12]} 15. Qxg4 {[%clk 0:01:29]}  e5 {[%clk 0:02:11]} 16. Qg5 {[%clk 0:01:27]}  e4 {[%clk 0:02:00]} 17. O-O-O {[%clk 0:01:12]}  exd3 {[%clk 0:01:55]} 18. Rxd3 {[%clk 0:00:56]}  Qxg5+ {[%clk 0:01:35]} 19. Nxg5 {[%clk 0:00:55]}  Bf5 {[%clk 0:01:32]} 20. Rf3 {[%clk 0:00:55]}  g6 {[%clk 0:01:29]} 21. hxg6 {[%clk 0:00:49]}  Bxg6 {[%clk 0:01:30]} 22. Rg1 {[%clk 0:00:45]}  Kf8 {[%clk 0:01:18]} 23. Kd2 {[%clk 0:00:19]}  Rad8 {[%clk 0:01:17]} 24. Nh3 {[%clk 0:00:16]}  Ne6 {[%clk 0:01:12]} 25. Ne2 {[%clk 0:00:14]}  Be4 {[%clk 0:01:08]} 26. Rfg3 {[%clk 0:00:13]}  Ke7 {[%clk 0:01:05]} 27. Nef4 {[%clk 0:00:13]}  Nxd4 {[%clk 0:01:02]} 28. Re1 {[%clk 0:00:11]}  Kd6 {[%clk 0:00:58]} 29. Ng5 {[%clk 0:00:11]}  Re7 {[%clk 0:00:52]} 30. f3 {[%clk 0:00:09]}  Bxc2 {[%clk 0:00:46]} 31. Rxe7 {[%clk 0:00:08]}  Kxe7 {[%clk 0:00:46]} 32. Kc3 {[%clk 0:00:08]}  Nf5 {[%clk 0:00:38]} 33. Rh3 {[%clk 0:00:09]}  h6 {[%clk 0:00:35]} 34. Nxf7 {[%clk 0:00:06]}  Rc8+ {[%clk 0:00:34]} 35. Kd2 {[%clk 0:00:06]}  Kxf7 {[%clk 0:00:34]} 36. Nxd5 {[%clk 0:00:07]}  Rd8 {[%clk 0:00:33]} 37. Kxc2 {[%clk 0:00:08]}  Rxd5 {[%clk 0:00:33]} 38. Rh5 {[%clk 0:00:08]}  Ne3+ {[%clk 0:00:33]} 0-1


[Site "https://www.chess.com"]

[Event "Titled Tuesday Blitz May 23 Late 2023"]
[White "Harish, Neeraj"]
[Black "Petrovic, Aleksa"]
[WhiteFideId "30958130"]
[BlackFideId "967629"]
[WhiteElo "1879"]
[BlackElo "2309"]
[Result "1/2-1/2"]
[Round "02"]
[TimeControl "180+2"]
[Date "2023.05.23"]
[WhiteClock "0:00:04"]
[BlackClock "0:00:54"]

1. e4 {[%clk 0:03:00]}  d5 {[%clk 0:02:58]} 2. exd5 {[%clk 0:02:57]}  Qxd5 {[%clk 0:02:58]} 3. Nc3 {[%clk 0:02:57]}  Qe5+ {[%clk 0:02:59]} 4. Be2 {[%clk 0:02:54]}  Bg4 {[%clk 0:02:59]} 5. d4 {[%clk 0:02:46]}  Bxe2 {[%clk 0:02:58]} 6. Ngxe2 {[%clk 0:02:44]}  Qa5 {[%clk 0:02:58]} 7. O-O {[%clk 0:02:43]}  c6 {[%clk 0:02:51]} 8. Bf4 {[%clk 0:02:38]}  e6 {[%clk 0:02:49]} 9. Ne4 {[%clk 0:02:18]}  Qd8 {[%clk 0:02:43]} 10. c4 {[%clk 0:02:15]}  Nf6 {[%clk 0:02:35]} 11. N2c3 {[%clk 0:02:11]}  Nxe4 {[%clk 0:02:25]} 12. Nxe4 {[%clk 0:02:11]}  Be7 {[%clk 0:02:25]} 13. c5 {[%clk 0:02:09]}  O-O {[%clk 0:02:23]} 14. Bd6 {[%clk 0:01:44]}  Nd7 {[%clk 0:02:17]} 15. b4 {[%clk 0:01:15]}  Nf6 {[%clk 0:02:13]} 16. Nxf6+ {[%clk 0:00:57]}  gxf6 {[%clk 0:02:12]} 17. Bxe7 {[%clk 0:00:51]}  Qxe7 {[%clk 0:02:13]} 18. a4 {[%clk 0:00:51]}  Rad8 {[%clk 0:02:08]} 19. Ra3 {[%clk 0:00:51]}  Kh8 {[%clk 0:01:57]} 20. Rh3 {[%clk 0:00:43]}  Rg8 {[%clk 0:01:53]} 21. b5 {[%clk 0:00:39]}  f5 {[%clk 0:01:44]} 22. bxc6 {[%clk 0:00:34]}  bxc6 {[%clk 0:01:45]} 23. Qe2 {[%clk 0:00:20]}  Qf6 {[%clk 0:01:41]} 24. Qf3 {[%clk 0:00:16]}  Rd5 {[%clk 0:01:28]} 25. Rd1 {[%clk 0:00:14]}  Qg7 {[%clk 0:01:18]} 26. Rg3 {[%clk 0:00:08]}  Qf6 {[%clk 0:01:10]} 27. Rxg8+ {[%clk 0:00:08]}  Kxg8 {[%clk 0:01:11]} 28. Qg3+ {[%clk 0:00:08]}  Kh8 {[%clk 0:01:11]} 29. Qf4 {[%clk 0:00:03]}  e5 {[%clk 0:01:05]} 30. Qg3 {[%clk 0:00:03]}  Rxd4 {[%clk 0:01:03]} 31. Rxd4 {[%clk 0:00:02]}  exd4 {[%clk 0:01:04]} 32. Qb8+ {[%clk 0:00:02]}  Kg7 {[%clk 0:01:05]} 33. h3 {[%clk 0:00:02]}  d3 {[%clk 0:01:05]} 34. Qg3+ {[%clk 0:00:01]}  Kf8 {[%clk 0:00:57]} 35. Qxd3 {[%clk 0:00:02]}  Qa1+ {[%clk 0:00:57]} 36. Kh2 {[%clk 0:00:02]}  Qe5+ {[%clk 0:00:57]} 37. g3 {[%clk 0:00:02]}  Qxc5 {[%clk 0:00:57]} 38. Qd8+ {[%clk 0:00:02]}  Kg7 {[%clk 0:00:51]} 39. Qg5+ {[%clk 0:00:03]}  Kh8 {[%clk 0:00:52]} 40. Qd8+ {[%clk 0:00:03]}  Kg7 {[%clk 0:00:53]} 41. Qg5+ {[%clk 0:00:03]}  Kf8 {[%clk 0:00:53]} 42. Qd8+ {[%clk 0:00:04]}  Kg7 {[%clk 0:00:54]} 1/2-1/2


[Site "https://www.chess.com"]

[Event "Titled Tuesday Blitz May 23 Late 2023"]
[White "Eynullayev, Atilla"]
[Black "Wang, Alexander J"]
[WhiteFideId "13413570"]
[BlackFideId "30955270"]
[WhiteElo "2181"]
[BlackElo "2264"]
[Result "0-1"]
[Round "02"]
[TimeControl "180+2"]
[Date "2023.05.23"]
[WhiteClock "0:01:14"]
[BlackClock "0:02:28"]

1. d4 {[%clk 0:03:00]}  d5 {[%clk 0:02:57]} 2. c4 {[%clk 0:03:01]}  e6 {[%clk 0:02:57]} 3. Nc3 {[%clk 0:03:02]}  c5 {[%clk 0:02:57]} 4. cxd5 {[%clk 0:03:01]}  exd5 {[%clk 0:02:58]} 5. dxc5 {[%clk 0:03:02]}  d4 {[%clk 0:02:58]} 6. Ne4 {[%clk 0:03:00]}  Bf5 {[%clk 0:02:57]} 7. Ng3 {[%clk 0:02:59]}  Bg6 {[%clk 0:02:57]} 8. Nf3 {[%clk 0:02:56]}  Bxc5 {[%clk 0:02:57]} 9. h4 {[%clk 0:02:55]}  h5 {[%clk 0:02:53]} 10. Bg5 {[%clk 0:02:55]}  Nf6 {[%clk 0:02:53]} 11. e3 {[%clk 0:02:51]}  Bb4+ {[%clk 0:02:49]} 12. Nd2 {[%clk 0:02:50]}  dxe3 {[%clk 0:02:48]} 13. Bxe3 {[%clk 0:02:50]}  O-O {[%clk 0:02:47]} 14. Bc4 {[%clk 0:02:47]}  Ng4 {[%clk 0:02:47]} 15. Bg5 {[%clk 0:02:16]}  Re8+ {[%clk 0:02:38]} 16. Kf1 {[%clk 0:01:14]}  Qd4 {[%clk 0:02:28]} 0-1


[Site "https://www.chess.com"]

[Event "Titled Tuesday Blitz May 23 Late 2023"]
[White "Simonovic, Miroslav"]
[Black "Guliev, Logman"]
[WhiteFideId "919152"]
[BlackFideId "13400061"]
[WhiteElo "2042"]
[BlackElo "2128"]
[Result "1-0"]
[Round "02"]
[TimeControl "180+2"]
[Date "2023.05.23"]
[WhiteClock "0:01:10"]
[BlackClock "0:01:18"]

1. d4 {[%clk 0:02:59]}  Nf6 {[%clk 0:02:58]} 2. Bg5 {[%clk 0:03:00]}  d5 {[%clk 0:02:57]} 3. Bxf6 {[%clk 0:03:00]}  exf6 {[%clk 0:02:57]} 4. e3 {[%clk 0:03:00]}  g6 {[%clk 0:02:57]} 5. c4 {[%clk 0:03:01]}  dxc4 {[%clk 0:02:55]} 6. Bxc4 {[%clk 0:03:02]}  Bg7 {[%clk 0:02:55]} 7. Nc3 {[%clk 0:03:01]}  O-O {[%clk 0:02:56]} 8. Nge2 {[%clk 0:03:00]}  f5 {[%clk 0:02:56]} 9. g3 {[%clk 0:02:59]}  Nd7 {[%clk 0:02:57]} 10. Bd5 {[%clk 0:02:58]}  c6 {[%clk 0:02:52]} 11. Bf3 {[%clk 0:02:54]}  Nf6 {[%clk 0:02:52]} 12. O-O {[%clk 0:02:54]}  Re8 {[%clk 0:02:52]} 13. Qc2 {[%clk 0:02:54]}  Qe7 {[%clk 0:02:51]} 14. a3 {[%clk 0:02:50]}  h5 {[%clk 0:02:49]} 15. h4 {[%clk 0:02:45]}  Bh6 {[%clk 0:02:46]} 16. Nf4 {[%clk 0:02:42]}  Bxf4 {[%clk 0:02:40]} 17. exf4 {[%clk 0:02:43]}  Be6 {[%clk 0:02:40]} 18. b4 {[%clk 0:02:41]}  Rad8 {[%clk 0:02:40]} 19. Rad1 {[%clk 0:02:38]}  Nd5 {[%clk 0:02:39]} 20. Rfe1 {[%clk 0:02:28]}  Qf6 {[%clk 0:02:38]} 21. Nxd5 {[%clk 0:02:22]}  Bxd5 {[%clk 0:02:34]} 22. Rxe8+ {[%clk 0:02:23]}  Rxe8 {[%clk 0:02:34]} 23. Bxd5 {[%clk 0:02:23]}  cxd5 {[%clk 0:02:34]} 24. Qc5 {[%clk 0:02:08]}  Qe6 {[%clk 0:02:19]} 25. Qxa7 {[%clk 0:02:01]}  Qe2 {[%clk 0:02:18]} 26. Rf1 {[%clk 0:02:01]}  Qd3 {[%clk 0:01:55]} 27. Qxb7 {[%clk 0:01:48]}  Qxd4 {[%clk 0:01:54]} 28. Qd7 {[%clk 0:01:38]}  Re2 {[%clk 0:01:53]} 29. Qd6 {[%clk 0:01:28]}  Ra2 {[%clk 0:01:48]} 30. Qb8+ {[%clk 0:01:10]}  Kg7 {[%clk 0:01:45]} 31. Qe5+ {[%clk 0:01:10]}  Qxe5 {[%clk 0:01:44]} 32. fxe5 {[%clk 0:01:10]}  Rxa3 {[%clk 0:01:45]} 33. Rd1 {[%clk 0:01:11]}  Rb3 {[%clk 0:01:29]} 34. Rd4 {[%clk 0:01:10]}  Rxb4 {[%clk 0:01:18]} 35. Rxb4 {[%clk 0:01:10]} 1-0


[Site "https://www.chess.com"]